bitfinex/quotes_ETHUSD_20240612
["timestamp","ask_amount","ask_price","bid_price","bid_amount"]
[1718167701650,2.391,3521.8,3520.3,2.3074]
[1718167701928,0.87,3521.2,3520.5,2.3074]
[1718167702125,0.87,3521.2,3520.9,0.59129062]
[1718167702352,0.87,3521.2,3521.0,2.3074]
[1718167702944,2.83976,3521.5,3521.0,2.3074]
[1718167703137,0.87,3521.1,3520.8,0.59129062]
[1718167705254,0.87,3520.9,3520.8,0.59129062]
[1718167706147,0.87,3520.9,3520.7,2.89869062]
[1718167706527,0.87,3520.9,3520.6,0.59129062]
[1718167706734,0.87,3520.7,3520.6,0.59129062]
[1718167707132,0.87,3520.7,3520.5,0.88711755]
[1718167707372,0.87,3520.7,3520.6,0.59156742]
[1718167707561,0.87,3520.7,3520.6,0.78310181]
[1718167707971,4.26034,3520.7,3520.6,0.19153439]
[1718167708285,4.686374,3520.7,3520.2,0.59156742]
[1718167708431,0.87,3520.4,3520.2,0.59156742]
[1718167708634,0.87,3520.4,3520.3,0.59156742]
[1718167709159,0.87,3520.4,3520.1,0.59156742]
[1718167709357,0.87,3520.2,3520.1,0.59156742]
[1718167710165,0.87,3520.2,3520.0,0.59156742]
[1718167710537,0.87,3520.2,3519.9,0.71490222]
[1718167711168,0.87,3520.0,3519.9,0.71490222]
[1718167711879,1.42,3520.0,3519.9,0.1233348]
[1718167712242,0.55,3520.0,3519.9,0.1233348]
[1718167712440,0.87,3520.0,3519.9,0.1233348]
[1718167712639,4.2609,3520.0,3519.9,0.1233348]
[1718167713262,4.87439993,3520.0,3519.9,0.1233348]
[1718167714553,4.87439993,3520.0,3519.9,0.31557126]
[1718167714756,4.87439993,3520.0,3519.9,0.1233348]
[1718167715282,4.87439993,3520.0,3519.9,0.31557126]
[1718167715491,4.87439993,3520.0,3519.9,0.1233348]
[1718167715643,4.87439993,3520.0,3519.9,0.3157736]
[1718167715843,4.00439993,3520.0,3519.9,0.3157736]
[1718167716064,4.87439993,3520.0,3519.9,0.3157736]
[1718167716994,7.27769993,3520.0,3519.9,0.3157736]
[1718167717276,10.27769993,3520.0,3519.9,0.1233348]
[1718167719264,13.26569993,3520.0,3519.9,0.1233348]
[1718167720088,13.26569993,3520.0,3518.4,0.59156742]
[1718167720089,2.988,3519.8,3518.4,0.59156742]
[1718167720290,0.87,3518.5,3518.0,2.96196742]
[1718167720459,2.84175,3519.0,3518.5,0.19355741]
[1718167720647,2.84175,3519.0,3518.0,5.80442742]
[1718167720648,2.84175,3519.0,3518.6,0.25844711]
[1718167720980,0.87,3518.8,3518.7,0.19345386]
[1718167721163,0.87,3518.8,3518.7,0.45190097]
[1718167721343,1.42,3518.8,3518.7,0.45190097]
[1718167724087,2.84141,3519.4,3518.7,2.86220097]
[1718167724265,2.84141,3519.4,3518.7,2.60375386]
[1718167724452,0.87,3519.2,3518.7,2.60375386]
[1718167724652,0.55,3519.3,3518.7,2.60375386]
[1718167724653,0.55,3519.3,3518.7,2.86412925]
[1718167725187,0.87,3518.8,3518.7,0.45382925]
[1718167725362,0.87,3518.8,3518.7,0.71227636]
[1718167726187,0.55,3519.3,3518.7,0.71227636]
[1718167726367,0.87,3519.0,3518.7,0.45382925]
[1718167726681,0.55,3519.6,3518.9,0.25683185]
[1718167726884,0.87,3519.1,3518.8,0.52380469]
[1718167727073,0.87,3519.1,3519.0,0.19411922]
[1718167727262,0.87,3519.1,3518.8,0.32958193]
[1718167727463,0.87,3519.1,3519.0,0.19411922]
[1718167727697,0.55,3519.7,3518.8,0.32958193]
[1718167727913,0.87,3519.2,3519.0,0.19411922]
[1718167728208,2.988,3520.7,3518.3,3.00186742]
[1718167728209,2.3412,3521.2,3519.1,0.9268345]
[1718167728386,0.87,3520.3,3519.6,2.84117]
[1718167728551,2.84022,3520.9,3519.6,2.84117]
[1718167728752,0.87,3520.3,3519.7,0.19364493]
[1718167729462,0.87,3520.4,3519.7,0.19364493]
[1718167729795,0.284022,3520.8,3519.7,0.19364493]
[1718167729998,0.87,3520.3,3519.7,0.19364493]
[1718167731051,2.84035,3520.7,3519.7,0.19364493]
[1718167731255,1.3716372,3520.6,3519.7,0.19364493]
[1718167734004,1.3716372,3520.6,3519.8,2.84102]
[1718167734299,1.3716372,3520.6,3519.9,0.193105]
[1718167734482,1.3716372,3520.6,3519.9,2.577205]
[1718167734692,2.3412,3521.2,3520.0,2.89766557]
[1718167734882,2.83972,3521.5,3520.3,2.8406]
[1718167735385,2.83972,3521.5,3520.4,0.19281251]
[1718167736283,0.55,3521.4,3520.4,0.19281251]
[1718167736596,0.787772,3521.3,3520.4,0.19281251]
[1718167737037,0.55,3521.2,3520.4,0.19281251]
[1718167739806,0.55,3521.2,3520.7,2.84034]
[1718167740122,0.55,3521.5,3520.8,0.19186498]
[1718167740421,0.2642,3521.4,3520.8,0.19186498]
[1718167740660,0.55,3521.3,3520.8,0.19186498]
[1718167745934,0.55,3521.3,3520.9,2.84016]
[1718167746242,2.83941,3521.9,3520.9,3.03198389]
[1718167746451,0.55,3521.8,3520.9,3.03198389]
[1718167747227,1.117531,3521.8,3520.9,3.03198389]
[1718167748310,0.55,3521.8,3520.9,3.03198389]
[1718167749000,0.55,3521.8,3521.2,2.83993]
[1718167749414,0.55,3521.8,3521.3,0.19161523]
[1718167749819,0.55,3521.8,3521.4,0.19126696]
[1718167750240,0.55,3521.8,3521.2,2.83993]
[1718167750445,0.55,3521.8,3521.5,3.03092922]
[1718167750831,9.462,3522.4,3521.6,2.2549]
[1718167751169,2.83878,3522.7,3521.7,2.83951]
[1718167751624,2.83878,3522.7,3521.8,0.19111418]
[1718167752251,2.83878,3522.7,3521.9,2.83933]
[1718167752451,2.83847,3523.1,3522.3,2.4797]
[1718167752946,2.83847,3523.1,3522.4,0.1910486]
[1718167753918,0.55,3523.0,3522.4,0.1910486]
[1718167756950,0.55,3523.1,3522.3,2.4797]
[1718167757153,0.9656839,3523.1,3522.3,2.4797]
[1718167760242,0.55,3523.1,3522.3,2.4797]
[1718167760462,0.55,3523.3,3522.3,2.4797]
[1718167760846,0.55,3523.3,3522.4,2.83897]
[1718167761063,0.55,3523.3,3522.5,0.18929201]
[1718167761254,0.55,3523.4,3522.5,0.18929201]
[1718167761462,1.324293,3523.4,3522.5,0.18929201]
[1718167761968,1.324293,3523.4,3522.6,2.83876]
[1718167762173,0.55,3523.4,3522.6,2.83876]
[1718167762383,0.55,3523.5,3522.7,0.18906348]
[1718167762668,0.55,3523.5,3522.8,2.8386]
[1718167762971,0.55,3523.5,3522.9,0.18896018]
[1718167765150,2.8382,3523.4,3522.9,0.18896018]
[1718167765350,0.7743,3523.3,3522.9,0.18896018]
[1718167765583,0.55,3523.2,3522.4,2.83891]
[1718167765760,0.55,3523.2,3523.0,0.18890853]
[1718167765960,0.55,3523.2,3522.4,2.83891]
[1718167766161,0.55,3523.2,3523.1,0.18885688]
[1718167766361,2.8382,3523.4,3522.4,2.83891]
[1718167766362,0.55,3523.3,3522.4,2.83891]
[1718167766674,0.55,3523.3,3522.4,3.370771]
[1718167766878,0.55,3523.3,3522.5,0.18889403]
[1718167773164,0.55,3523.3,3522.5,0.78046145]
[1718167774794,0.55,3523.3,3522.6,0.59156742]
[1718167774998,0.87,3523.1,3522.6,0.78040979]
[1718167775370,0.55,3523.0,3522.6,1.11876167]
[1718167775569,0.87,3523.2,3522.6,1.11876167]
[1718167775891,0.55,3523.1,3522.6,1.11876167]
[1718167776088,0.55,3523.1,3522.7,0.59156742]
[1718167776398,0.55,3523.1,3522.8,0.18873906]
[1718167776695,0.55,3523.1,3522.8,2.4834]
[1718167776898,0.55,3523.1,3522.9,0.18871871]
[1718167777085,0.55,3523.1,3522.8,2.4834]
[1718167777400,0.55,3523.1,3522.9,0.18871871]
[1718167777603,0.55,3523.1,3522.8,2.4834]
[1718167777797,0.55,3523.1,3523.0,0.18866706]
[1718167778002,0.55,3523.1,3522.8,2.4834]
[1718167778302,0.55,3523.1,3523.0,0.18866706]
[1718167778666,0.55,3523.1,3522.8,3.07496742]
[1718167778862,0.55,3523.1,3522.9,0.18871871]
[1718167779080,0.55,3523.1,3522.8,2.4834]
[1718167779263,0.55,3523.1,3522.8,3.07496742]
[1718167779492,0.55,3523.1,3522.9,0.18871871]
[1718167779892,0.55,3523.1,3523.0,0.18866706]
[1718167780605,0.55,3523.1,3522.8,3.07496742]
[1718167780775,0.55,3523.1,3523.0,0.18866706]
[1718167780984,0.55,3523.1,3522.8,3.07496742]
[1718167781188,0.55,3523.1,3523.0,0.18866706]
[1718167781519,0.55,3523.1,3522.8,2.4834]
[1718167781677,0.55,3523.1,3523.0,0.18866706]
[1718167781876,0.55,3523.1,3522.7,3.43028742]
[1718167782197,0.87,3523.0,3522.8,0.18877036]
[1718167782383,0.87,3523.0,3522.7,2.83872]
[1718167782573,0.87,3523.0,3522.9,0.18871871]
[1718167782900,0.87,3523.0,3522.7,2.83872]
[1718167783204,0.87,3523.0,3522.8,0.18877036]
[1718167783507,0.87,3523.0,3522.7,2.83872]
[1718167783705,0.87,3523.0,3522.9,0.18871871]
[1718167784009,0.87,3523.0,3522.7,2.83872]
[1718167784214,0.87,3523.0,3522.9,0.18871871]
[1718167784373,0.87,3523.0,3522.8,0.18877036]
[1718167784574,0.87,3523.0,3522.7,2.83872]
[1718167784874,0.87,3523.0,3522.9,0.18871871]
[1718167785075,0.87,3523.0,3522.8,0.18877036]
[1718167785478,0.87,3523.0,3522.9,0.18871871]
[1718167786131,0.87,3523.0,3522.7,2.83872]
[1718167786332,0.87,3523.0,3522.9,0.18871871]
[1718167786718,0.87,3523.0,3522.7,2.83872]
[1718167786915,0.87,3523.0,3522.9,0.18871871]
[1718167787118,0.87,3523.0,3522.7,2.83872]
[1718167787318,0.87,3523.0,3522.9,0.18871871]
[1718167787541,0.87,3523.0,3522.7,2.83872]
[1718167787739,0.87,3523.0,3522.9,0.18871871]
[1718167788037,0.87,3523.0,3522.7,2.83872]
[1718167788242,0.87,3523.0,3522.9,0.18871871]
[1718167788728,0.87,3523.0,3522.7,2.83872]
[1718167788928,0.87,3523.0,3522.9,0.18871871]
[1718167789539,0.87,3523.0,3522.7,2.83872]
[1718167789709,0.87,3523.0,3522.9,0.18871871]
[1718167789907,0.87,3523.0,3522.7,2.83872]
[1718167790118,0.87,3523.0,3522.8,0.18877036]
[1718167790319,0.87,3523.0,3522.7,2.83872]
[1718167790646,0.87,3523.0,3522.9,0.18871871]
[1718167791251,0.87,3523.0,3522.7,2.83872]
[1718167791421,0.87,3523.0,3522.9,0.18871871]
[1718167791616,0.87,3523.0,3522.8,0.18879269]
[1718167791816,0.87,3523.0,3522.7,2.83872]
[1718167791817,0.87,3522.9,3522.7,2.83872]
[1718167793241,0.87,3522.9,3522.7,3.43028742]
[1718167794531,0.87,3522.9,3522.8,0.59156742]
[1718167796422,0.87,3522.9,3522.7,0.88711755]
[1718167797447,0.87,3522.9,3522.8,1.07591024]
[1718167798523,0.87,3522.9,3522.8,0.18879269]
[1718167798724,0.87,3522.9,3522.7,1.17457269]
[1718167798920,0.87,3522.9,3522.8,1.0753382]
[1718167799343,0.87,3522.9,3522.8,2.16056097]
[1718167800029,0.87,3522.9,3522.8,1.07547483]
[1718167800235,0.87,3522.9,3522.8,2.16056097]
[1718167800433,0.87,3522.9,3522.8,1.07563113]
[1718167800870,0.55,3523.1,3522.8,1.07563113]
[1718167801065,0.87,3522.9,3522.8,2.16056097]
[1718167801442,0.87,3522.9,3522.8,3.33513366]
[1718167801745,0.87,3523.0,3522.8,0.18879269]
[1718167801966,0.87,3523.0,3522.9,0.88684651]
[1718167802147,0.87,3523.0,3522.9,1.07558755]
[1718167802348,0.87,3523.0,3522.9,3.04735583]
[1718167802866,0.87,3523.0,3522.9,2.16050932]
[1718167803269,0.55,3523.2,3522.9,2.16050932]
[1718167803467,1.42,3523.2,3523.1,0.88740892]
[1718167803775,1.42,3523.2,3523.1,0.18863775]
[1718167804078,1.42,3523.2,3523.0,2.8591772]
[1718167804255,1.42,3523.2,3523.1,0.18863775]
[1718167804675,1.42,3523.2,3523.1,2.8591772]
[1718167804843,1.42,3523.2,3523.1,3.04781495]
[1718167805044,1.42,3523.2,3523.1,1.07604667]
[1718167805275,1.42,3523.2,3523.1,3.04781495]
[1718167805453,1.42,3523.2,3523.1,1.07604667]
[1718167805653,1.42,3523.2,3523.1,3.04781495]
[1718167806069,2.83799,3523.7,3523.1,2.16040603]
[1718167806267,0.87,3523.4,3523.2,2.85920064]
[1718167806467,0.55,3523.6,3523.3,2.85903655]
[1718167806658,0.55,3523.6,3523.5,0.59160593]
[1718167806860,0.87,3523.6,3523.5,0.59160593]
[1718167807080,1.42,3523.6,3523.5,0.78001926]
[1718167807251,1.42,3523.6,3523.5,0.18841333]
[1718167807671,1.42,3523.6,3523.5,3.04736423]
[1718167807882,3.7955,3523.6,3523.5,1.07584569]
[1718167808073,4.17505,3523.6,3523.5,0.18841333]
[1718167808393,4.17505,3523.6,3523.5,0.77984638]
[1718167811592,3.7955,3523.6,3523.5,0.77984638]
[1718167813496,3.7955,3523.6,3523.5,0.18841333]
[1718167815801,1.42,3523.6,3523.5,0.18841333]
[1718167817091,0.55,3523.6,3523.5,0.18841333]
[1718167817293,0.87,3523.6,3523.5,0.18841333]
[1718167817488,2.095606,3523.6,3523.5,0.18841333]
[1718167823193,4.588806,3523.6,3523.5,0.18841333]
[1718167823746,2.4932,3523.5,3522.9,0.59143305]
[1718167823920,0.87,3523.1,3522.9,0.59143305]
[1718167824126,0.55,3523.0,3522.8,0.59143305]
[1718167824326,0.87,3522.9,3522.8,0.59143305]
[1718167825654,0.55,3523.0,3522.8,0.59143305]
[1718167825953,0.55,3523.0,3522.7,0.88743236]
[1718167825954,0.87,3522.9,3522.7,0.88743236]
[1718167826128,0.87,3522.9,3522.8,0.88743236]
[1718167827517,0.87,3522.9,3522.8,1.07615801]
[1718167829719,2.83798,3523.7,3522.8,3.90105587]
[1718167830031,0.87,3523.3,3523.2,0.59128675]
[1718167830235,1.42,3523.3,3523.2,0.59128675]
[1718167830418,1.42,3523.3,3523.2,0.77980581]
[1718167832684,1.42,3523.3,3523.2,0.18851906]
[1718167833670,0.55,3523.3,3523.2,0.18851906]
[1718167833871,0.87,3523.3,3523.2,0.18851906]
[1718167834179,0.87,3523.3,3523.2,1.07595142]
[1718167835481,0.87,3523.3,3523.2,0.18851906]
[1718167839156,1.42,3523.3,3523.2,0.78000551]
[1718167839356,1.84581,3523.3,3523.2,0.78000551]
[1718167839557,1.84581,3523.3,3523.2,0.18851906]
[1718167839759,1.84581,3523.3,3523.0,0.59148645]
[1718167840063,0.87,3523.1,3523.0,0.59148645]
[1718167840651,0.55,3523.2,3523.0,0.59148645]
[1718167840856,0.87,3523.1,3523.0,0.59148645]
[1718167841073,0.87,3523.1,3522.9,0.88743236]
[1718167842385,0.87,3523.1,3523.0,0.22455023]
[1718167842563,0.87,3523.1,3523.0,1.11198259]
[1718167842958,0.87,3523.1,3523.0,0.22455023]
[1718167843491,1.42,3523.1,3523.0,0.81623598]
[1718167843788,1.42,3523.1,3523.0,0.22455023]
[1718167847573,1.42,3523.1,3523.0,0.22460387]
[1718167850310,1.42,3523.1,3522.8,0.59168575]
[1718167850511,0.87,3522.9,3522.8,0.59168575]
[1718167857017,4.183049,3522.9,3522.8,0.59168575]
[1718167857224,2.83865,3522.8,3522.6,0.59168575]
[1718167857441,2.83865,3522.8,3522.3,0.59168575]
[1718167857442,2.83881,3522.6,3522.3,0.59168575]
[1718167857615,3.70897,3522.4,3522.3,0.59168575]
[1718167857819,3.70897,3522.4,3522.2,0.59168575]
[1718167858020,0.87,3522.3,3522.2,0.59168575]
[1718167858420,0.87,3522.3,3522.1,0.59168575]
[1718167858744,0.87,3522.2,3522.1,0.59168575]
[1718167861950,0.87,3522.2,3522.0,0.59168575]
[1718167862136,0.87,3522.1,3522.0,0.59168575]
[1718167862454,4.080157,3522.1,3521.8,0.59168575]
[1718167862635,2.83945,3521.8,3521.6,0.59168575]
[1718167862944,2.83961,3521.6,3521.3,0.59168575]
[1718167863144,0.87,3521.4,3521.2,0.59168575]
[1718167863324,0.87,3521.3,3521.1,0.59168575]
[1718167864016,0.87,3521.3,3521.0,2.92288575]
[1718167864215,0.87,3521.1,3521.0,2.92288575]
[1718167865517,0.87,3521.1,3521.0,2.3312]
[1718167865714,0.87,3521.1,3521.0,2.92288575]
[1718167866420,0.87,3521.1,3521.0,2.3312]
[1718167867849,2.83934,3522.0,3521.0,2.90950363]
[1718167868147,2.83934,3522.0,3521.2,2.3309]
[1718167868148,0.87,3521.6,3521.2,2.3309]
[1718167868334,0.87,3521.4,3521.2,2.92258575]
[1718167868538,0.87,3521.4,3521.2,2.3309]
[1718167869751,0.87,3521.4,3521.0,3.59568938]
[1718167869950,0.87,3521.2,3521.0,3.00400363]
[1718167871555,0.87,3521.2,3520.8,2.4257]
[1718167872663,0.87,3521.0,3520.9,0.22646639]
[1718167875327,0.87,3521.2,3520.9,0.22646639]
[1718167876629,2.83958,3521.7,3520.9,0.22646639]
[1718167876828,10.19927,3522.1,3521.0,3.31719809]
[1718167877026,0.87,3522.0,3521.2,2.3904]
[1718167877252,0.87,3522.0,3521.4,2.3904]
[1718167877665,0.87,3522.0,3521.5,0.22646771]
[1718167877836,0.87,3522.0,3521.4,2.3904]
[1718167878036,0.87,3521.8,3521.6,0.226415]
[1718167878231,0.87,3521.8,3521.4,2.3904]
[1718167878437,0.87,3521.8,3521.7,0.22636229]
[1718167878649,0.87,3521.8,3521.4,2.3904]
[1718167878862,0.87,3521.8,3521.7,0.22636229]
[1718167879050,0.87,3521.8,3521.5,0.58218758]
[1718167879229,0.87,3521.8,3521.7,0.22636229]
[1718167879583,0.87,3521.8,3521.5,0.58218758]
[1718167879791,0.87,3521.8,3521.7,0.22636229]
[1718167880011,0.87,3521.8,3521.6,0.226415]
[1718167880285,0.87,3521.8,3521.7,0.22636229]
[1718167882757,2.83895,3522.5,3521.8,2.3149]
[1718167883066,0.87,3522.3,3521.9,0.22625689]
[1718167884596,0.87,3522.3,3521.6,4.01505766]
[1718167884597,2.3949,3522.3,3521.6,0.88743236]
[1718167884771,2.3949,3521.6,3520.9,0.58967658]
[1718167884951,2.84061,3520.4,3519.8,0.58967658]
[1718167885149,2.84061,3520.4,3519.7,0.88451488]
[1718167885150,0.87,3519.9,3519.5,1.03377663]
[1718167885358,0.87,3519.6,3519.4,2.90457658]
[1718167885587,0.87,3519.6,3519.4,2.81167361]
[1718167886891,2.093,3520.3,3519.4,2.81167361]
[1718167887096,0.55,3520.2,3519.4,2.81167361]
[1718167887680,0.55,3520.2,3519.4,2.3149]
[1718167887891,2.84061,3520.4,3519.5,0.05682009]
[1718167888076,4.9332,3520.9,3519.5,2.89811009]
[1718167888265,0.55,3520.8,3519.5,2.84129]
[1718167888588,0.55,3520.8,3519.5,3.43096658]
[1718167888788,0.55,3520.8,3519.6,0.66303815]
[1718167891439,2.84036,3520.7,3519.6,0.66303815]
[1718167891601,0.55,3520.6,3519.6,0.66303815]
[1718167892289,0.55,3520.6,3519.7,0.19626615]
[1718167896722,0.55,3520.6,3519.8,2.2941]
[1718167896899,0.55,3520.6,3519.8,3.08978282]
[1718167898204,0.55,3520.6,3519.9,0.05681242]
[1718167898515,0.55,3520.6,3520.0,0.19610787]
[1718167900817,9.7447,3521.4,3520.1,0.05681191]
[1718167900818,2.84006,3521.1,3520.1,0.05681191]
[1718167901147,1.043306,3521.0,3520.2,0.1968842]
[1718167902431,1.043306,3521.0,3519.8,6.32424601]
[1718167902634,1.043306,3521.0,3519.9,0.19704246]
[1718167906954,0.872,3520.5,3519.9,0.19704246]
[1718167907377,0.55,3521.0,3520.2,0.872]
[1718167907583,0.872,3521.3,3520.4,3.2134]
[1718167907888,0.872,3521.3,3520.5,0.19753206]
[1718167908192,0.872,3521.1,3520.5,0.19753206]
[1718167908562,2.8397,3521.5,3520.5,0.19753206]
[1718167908762,0.872,3521.0,3520.5,0.19753206]
[1718167910364,3.71193,3521.3,3520.5,0.19753206]
[1718167910607,0.55,3521.2,3520.5,0.19753206]
[1718167918573,0.55,3521.2,3520.6,0.05680283]
[1718167918893,0.55,3521.2,3520.7,2.4613]
[1718167919098,2.83959,3521.7,3520.8,0.25394778]
[1718167919309,0.55,3521.6,3520.8,0.19714661]
[1718167919668,10.19927,3522.1,3521.0,2.4613]
[1718167919869,0.32649,3522.2,3521.3,2.4613]
[1718167920086,0.32649,3522.2,3521.4,0.25342209]
[1718167920286,0.32649,3522.2,3521.4,0.19663411]
[1718167920992,0.32649,3522.2,3521.4,3.03640411]
[1718167922411,0.55,3522.1,3521.4,3.03640411]
[1718167925307,0.921563,3522.1,3521.4,3.03640411]
[1718167925514,2.8393,3522.0,3521.4,0.19663411]
[1718167925725,0.55,3521.9,3521.0,3.42970658]
[1718167925887,0.55,3521.9,3521.1,0.19617311]
[1718167926804,2.83947,3521.8,3521.1,0.19617311]
[1718167927003,0.55,3521.7,3521.1,0.19617311]
[1718167928705,2.83967,3521.6,3521.1,0.19617311]
[1718167928926,2.8671,3521.5,3520.4,3.08867658]
[1718167929224,2.84012,3521.0,3520.5,0.19662309]
[1718167931245,3.12654,3521.4,3520.5,0.78629967]
[1718167931528,0.55,3521.3,3520.5,0.78629967]
[1718167931890,0.55,3521.3,3520.5,0.19662309]
[1718167932126,1.149364,3521.3,3520.5,0.19662309]
[1718167933034,1.149364,3521.3,3520.5,0.78629967]
[1718167933409,1.149364,3521.3,3520.5,0.19662309]
[1718167933910,1.149364,3521.3,3520.5,0.78629967]
[1718167934126,1.149364,3521.3,3520.5,0.19662309]
[1718167934425,1.149364,3521.3,3520.5,0.78629967]
[1718167935401,1.149364,3521.3,3520.6,0.58967658]
[1718167935801,1.149364,3521.3,3520.7,0.19651762]
[1718167936315,1.149364,3521.3,3520.6,0.58967658]
[1718167936636,1.149364,3521.3,3520.7,0.19651762]
[1718167936810,0.55,3521.3,3520.7,0.19651762]
[1718167936999,0.55,3521.3,3520.8,2.3984]
[1718167937201,0.55,3521.3,3520.8,2.59486489]
[1718167938640,0.55,3521.3,3520.8,3.18454147]
[1718167939252,3.4409233,3521.8,3520.9,2.89697064]
[1718167939253,2.83952,3521.8,3520.9,2.89697064]
[1718167939402,2.83952,3521.8,3520.9,4.12644928]
[1718167939403,0.55,3521.7,3520.9,4.12644928]
[1718167939604,0.55,3521.7,3521.0,0.78627652]
[1718167939804,0.55,3521.7,3521.0,0.19659994]
[1718167940343,0.55,3521.7,3521.0,0.78627652]
[1718167942513,0.55,3521.7,3521.1,2.89679737]
[1718167942710,7.41,3522.5,3521.2,3.27486213]
[1718167942952,7.41,3522.5,3521.4,0.58967658]
[1718167943105,7.41,3522.5,3521.5,0.19633637]
[1718167943308,2.091,3521.7,3521.5,0.19633637]
[1718167943507,2.091,3521.7,3521.0,5.27198]
[1718167943809,2.091,3521.7,3521.1,0.19654722]
[1718167944143,0.55,3521.6,3521.1,0.19654722]
[1718167947961,0.55,3521.6,3521.2,0.19654796]
[1718167948145,0.794255,3521.5,3520.8,0.58967658]
[1718167948348,0.55,3521.4,3520.9,0.19670612]
[1718167948760,0.55,3521.4,3520.9,0.7863827]
[1718167950066,0.55,3521.4,3520.9,0.19670612]
[1718167950251,0.55,3521.4,3520.9,0.7863827]
[1718167951465,0.55,3521.6,3521.0,0.58967658]
[1718167951680,1.344255,3521.6,3521.0,0.58967658]
[1718167951973,1.344255,3521.6,3521.1,0.1967122]
[1718167952733,1.344255,3521.6,3520.9,0.58967658]
[1718167952935,2.8397,3521.5,3521.0,0.19679613]
[1718167953168,2.83987,3521.3,3521.0,0.19679613]
[1718167953479,0.55,3521.2,3521.0,0.19679613]
[1718167953850,0.55,3521.2,3520.8,0.59191833]
[1718167954065,0.55,3521.2,3521.1,0.19685032]
[1718167954578,0.55,3521.2,3520.8,0.59191833]
[1718167954866,0.55,3521.2,3521.1,0.19685032]
[1718167955075,0.55,3521.2,3520.8,0.59191833]
[1718167955242,0.55,3521.2,3521.1,0.19685032]
[1718167955441,0.55,3521.2,3520.8,0.59191833]
[1718167955664,0.55,3521.2,3521.1,0.19685032]
[1718167955868,0.55,3521.2,3520.8,0.59191833]
[1718167956043,0.55,3521.2,3521.1,0.19685032]
[1718167956255,0.55,3521.2,3520.9,0.59191833]
[1718167956460,0.55,3521.2,3521.1,0.19685032]
[1718167956675,0.97635655,3521.2,3521.0,0.19690304]
[1718167956997,0.97635655,3521.2,3521.1,0.19685032]
[1718167957491,0.97635655,3521.2,3520.7,2.95691833]
[1718167957645,0.97635655,3521.2,3521.1,0.19685032]
[1718167958065,0.97635655,3521.2,3520.7,2.92829533]
[1718167958268,0.97635655,3521.2,3521.1,0.19685032]
[1718167958469,0.97635655,3521.2,3520.7,2.92829533]
[1718167958687,0.97635655,3521.2,3521.1,0.19685032]
[1718167958848,0.97635655,3521.2,3520.7,2.92829533]
[1718167959048,0.97635655,3521.2,3521.1,0.19685032]
[1718167959566,0.97635655,3521.2,3520.7,2.92829533]
[1718167959784,0.55,3521.2,3520.8,0.1970085]
[1718167960581,0.55,3521.2,3520.8,0.78892683]
[1718167960976,0.55,3521.2,3520.8,0.1970085]
[1718167964764,2.84003,3521.1,3520.8,0.1970085]
[1718167965089,0.871,3520.9,3520.8,0.1970085]
[1718167966873,0.871,3520.9,3520.8,0.19711543]
[1718167968555,0.871,3520.9,3520.8,0.78903376]
[1718167969578,2.84003,3521.1,3520.8,0.78903376]
[1718167969759,0.871,3521.0,3520.8,0.78903376]
[1718167969955,0.871,3521.0,3520.9,0.59191833]
[1718167970155,0.871,3521.0,3520.9,0.78739011]
[1718167970586,0.871,3521.0,3520.9,0.19547178]
[1718167972496,2.83952,3521.8,3520.9,1.08334928]
[1718167972705,0.871,3521.4,3521.1,0.59264216]
[1718167973058,0.871,3521.4,3521.2,0.19531361]
[1718167973261,0.871,3521.4,3521.2,0.78795577]
[1718167976378,0.871,3521.3,3521.2,0.78795577]
[1718167976580,0.871,3521.3,3521.2,0.19531361]
[1718167976993,0.871,3521.3,3521.2,0.78793146]
[1718167977701,0.55,3521.7,3521.2,0.78793146]
[1718167977865,0.871,3521.3,3521.2,0.19531361]
[1718167978061,0.871,3521.3,3521.2,1.08319111]
[1718167979476,0.871,3521.3,3521.2,0.19531361]
[1718167979986,0.871,3521.3,3521.2,1.08319111]
[1718167980597,0.871,3521.3,3521.2,0.78792544]
[1718167980967,0.871,3521.3,3521.2,0.19531361]
[1718167981494,0.55,3521.7,3521.2,0.19531361]
[1718167981700,0.871,3521.4,3521.3,0.5925238]
[1718167981859,1.421,3521.4,3521.3,0.5925238]
[1718167982062,1.421,3521.4,3521.3,0.1950203]
[1718167982498,1.421,3521.4,3521.3,0.59251914]
[1718167982704,1.421,3521.4,3521.3,0.78753499]
[1718167983469,1.421,3521.4,3521.3,0.19501585]
[1718167983701,1.421,3521.4,3521.2,0.8878775]
[1718167983887,1.421,3521.4,3521.3,0.7875672]
[1718167984096,0.871,3521.4,3521.3,0.7875672]
[1718167984403,0.871,3521.4,3521.3,0.19499803]
[1718167984703,0.871,3521.4,3521.2,0.8878775]
[1718167985007,0.871,3521.4,3521.3,0.19499803]
[1718167985217,0.871,3521.4,3521.2,0.8878775]
[1718167985404,0.871,3521.4,3521.3,0.19499803]
[1718167985583,1.041,3521.9,3521.2,6.0551075]
[1718167985784,0.871,3521.5,3521.4,0.59246488]
[1718167986008,0.871,3521.5,3521.4,0.19492304]
[1718167987122,0.871,3521.5,3521.4,1.08280054]
[1718167988192,0.55,3521.8,3521.4,1.08280054]
[1718167988395,10.24921,3522.1,3521.4,1.08280054]
[1718167988396,0.871,3521.6,3521.4,1.08280054]
[1718167988597,0.55,3522.0,3521.5,2.89647233]
[1718167988777,0.871,3521.9,3521.7,2.91910288]
[1718167989218,0.871,3521.9,3521.8,0.19471221]
[1718167990929,0.871,3522.1,3521.8,0.78691509]
[1718167991103,0.871,3522.1,3521.9,0.59220288]